fUSD/lending_fUSD_20251215
["ID","MTS","AMOUNT","RATE_DAILY","PERIOD"]
[398566059,1765836955095,235.7645,0.0001565,2]
[398566060,1765836985540,281.4445,0.0001565,2]
[398566062,1765837027834,1174.13730854,0.00015674,2]
[398566063,1765837028381,2839.9627,0.0001565,2]
[398566065,1765837039103,61116.6022,0.0001565,2]
[398566070,1765837178348,-600.09277764,0.00015719,2]
[398566071,1765837181394,-170.89607748,0.00015719,2]
[398566072,1765837185581,-292.39196367,0.00015719,2]
[398566073,1765837190298,-296.25,0.00015719,2]
[398566074,1765837198528,-250.51443477,0.00015719,2]
[398566075,1765837200140,-159.62556523,0.00015719,2]
[398566077,1765837204498,-300.0,0.00015718,2]
[398566078,1765837204523,-91.70233138,0.00015718,2]
[398566080,1765837207748,-503.12384435,0.00015718,2]
[398566081,1765837208361,561.227524,0.0001564,2]
[398566082,1765837211958,-281.0,0.00015718,2]
[398566083,1765837212983,-261.61885011,0.00015718,2]
[398566084,1765837215468,-62.55497416,0.00015718,2]
[398566085,1765837215498,-125.82617573,0.00015718,2]
[398566086,1765837220092,-174.17382427,0.00015718,2]
[398566087,1765837220114,-125.82617573,0.00015719,2]
[398566088,1765837224616,-155.17382427,0.00015719,2]
[398566089,1765837224640,-102.88295071,0.00015719,2]
[398566090,1765837226145,-300.0,0.00015719,2]
[398566091,1765837228735,-324.90287186,0.00015719,2]
[398566092,1765837231398,-217.61650403,0.00015719,2]
[398566093,1765837233158,-236.44364305,0.00015718,2]
[398566094,1765837233181,-500.0,0.00015718,2]
[398566095,1765837233205,-67.84308564,0.00015718,2]
[398566096,1765837238062,-128.04952072,0.00015718,2]
[398566097,1765837238085,-61.46343869,0.00015718,2]
[398566098,1765837239774,-300.0,0.00015718,2]
[398566099,1765837241289,-138.53656131,0.00015718,2]
[398566100,1765837241318,-246.67001384,0.00015718,2]
[398566101,1765837243396,-43.06087657,0.00015718,2]
[398566102,1765837243423,-110.82912343,0.00015718,2]
[398566103,1765837247117,-78.24166311,0.00015718,2]
[398566104,1765837247145,-176.14346506,0.00015718,2]
[398566105,1765837251041,-387.71318301,0.00015718,2]
[398566106,1765837252699,-100.595253,0.00015718,2]
[398566107,1765837252725,-115.78663713,0.00015718,2]
[398566108,1765837254776,-350.03531202,0.00015718,2]
[398566109,1765837256868,-198.62995192,0.00015718,2]
[398566110,1765837256897,-101.37004808,0.00015718,2]
[398566111,1765837259741,-250.0,0.00015718,2]
[398566113,1765837265816,-300.0,0.00015717,2]
[398566114,1765837265842,-313.08185299,0.00015718,2]
[398566115,1765837265868,-197.94392863,0.00015718,2]
[398566116,1765837268802,-198.06934917,0.00015717,2]
[398566117,1765837270290,-101.93065083,0.00015717,2]
[398566118,1765837270317,-224.04148895,0.00015718,2]
[398566119,1765837277291,-242.46648349,0.00015718,2]
[398566120,1765837277316,-83.49566805,0.00015718,2]
[398566121,1765837280125,-299.99635951,0.00015718,2]
[398566122,1765837281757,3224.391775,0.00015639,2]
[398566123,1765837284398,-280.95987351,0.00015718,2]
[398566124,1765837284426,-100.01286301,0.00015718,2]
[398566125,1765837286501,-255.54650769,0.00015718,2]
[398566126,1765837290714,-210.89775306,0.00015718,2]
[398566127,1765837292247,-97.99477731,0.00015718,2]
[398566128,1765837292295,-178.87043191,0.00015718,2]
[398566129,1765837294017,1250.901,0.00015405,2]
[398566130,1765837294319,-191.34195284,0.00015718,2]
[398566131,1765837296615,7095.79965499,0.000157,2]
[398566132,1765837296937,-167.41834824,0.00015718,2]
[398566133,1765837300137,-126.82116808,0.00015718,2]
[398566134,1765837300162,-74.6728145,0.00015718,2]
[398566135,1765837303984,-166.66,0.00015718,2]
[398566137,1765837304988,-324.70718944,0.00015718,2]
[398566140,1765837353475,9346.91040576,0.00015629,2]
[398566143,1765837391355,358.3313622,0.00015629,2]
[398566144,1765837392848,-300.0,0.00015717,2]
[398566145,1765837392870,-234.3145748,0.00015718,2]
[398566147,1765837478218,-277.85258595,0.00015717,2]
[398566151,1765837516511,721.72,0.00014993,2]
[398566152,1765837519837,1000.0,0.000157,2]
[398566158,1765837553908,5536.39004615,0.000149,2]
[398566160,1765837566478,1000.0,0.00015167,2]
[398566163,1765837625188,1000.0,0.000157,2]
[398566164,1765837625235,1000.0,0.000157,2]
[398566165,1765837625274,1000.0,0.000157,2]
[398566166,1765837625320,1000.0,0.000157,2]
[398566167,1765837634704,5324.57520416,0.0001305,2]
[398566168,1765837643728,2588.0,0.0001571,2]
[398566169,1765837649735,1520.0,0.0001571,2]
[398566170,1765837650079,300.0,0.0001571,2]
[398566173,1765837669856,1046.0,0.000157,2]
[398566174,1765837683050,6386.2196895,0.00015629,2]
[398566175,1765837748508,250.0,0.00015133,2]
[398566176,1765837799700,313.53994189,0.00015618,2]
[398566177,1765837803493,280.0,0.00015618,2]
[398566187,1765837831615,-250.0,0.00015717,2]
[398566188,1765837831625,-39.14843026,0.00015717,2]
[398566189,1765837831638,-260.85156974,0.00015717,2]
[398566190,1765837831648,-1200.0,0.00015717,2]
[398566191,1765837831657,-300.0,0.00015717,2]
[398566192,1765837831666,-195.0,0.00015717,2]
[398566193,1765837831676,-165.51055013,0.00015717,2]
[398566194,1765837831685,-500.0,0.00015717,2]
[398566195,1765837831695,-402.81162329,0.00015717,2]
[398566196,1765837831705,-17.13921927,0.00015717,2]
[398566197,1765837831721,-282.86078073,0.00015717,2]
[398566198,1765837831731,-195.0,0.00015717,2]
[398566199,1765837831740,-390.87653377,0.00015717,2]
[398566200,1765837831750,-745.7424554,0.00015718,2]
[398566201,1765837831761,-5000.0,0.00015718,2]
[398566202,1765837831773,-737.85,0.00015718,2]
[398566203,1765837831794,-50197.69649199,0.00015718,2]
[398566210,1765837834766,1000.0,0.000157,2]
[398566221,1765837839195,-384.44980311,0.00015718,2]
[398566222,1765837839227,-403.082,0.00015718,2]
[398566223,1765837839239,-1343.07308045,0.00015718,2]
[398566224,1765837839291,-353.43393972,0.00015718,2]
[398566238,1765837839722,-793959.45543093,0.00015718,2]
[398566239,1765837839731,-151.0,0.00015718,2]
[398566240,1765837839741,-612.27986795,0.00015718,2]
[398566241,1765837839751,-612.27986795,0.00015718,2]
[398566242,1765837839760,-612.27986795,0.00015718,2]
[398566243,1765837839769,-612.27986795,0.00015718,2]
[398566244,1765837839778,-612.27986795,0.00015718,2]
[398566245,1765837839787,-612.27986795,0.00015718,2]
[398566246,1765837839797,-612.27986795,0.00015718,2]
[398566247,1765837839808,-612.27986795,0.00015718,2]
[398566248,1765837839820,-612.27986795,0.00015718,2]
[398566249,1765837839830,-612.27986795,0.00015718,2]
[398566250,1765837839840,-612.27986795,0.00015718,2]
[398566251,1765837839849,-612.27986795,0.00015718,2]
[398566252,1765837839859,-612.27986795,0.00015718,2]
[398566253,1765837839869,-612.27986795,0.00015718,2]
[398566254,1765837839878,-612.27986795,0.00015718,2]
[398566255,1765837839887,-612.27986795,0.00015718,2]
[398566256,1765837839896,-612.27986795,0.00015718,2]
[398566257,1765837839905,-612.27986795,0.00015718,2]
[398566258,1765837839915,-612.27986795,0.00015718,2]
[398566259,1765837839925,-612.27986795,0.00015718,2]
[398566260,1765837839934,-612.27986795,0.00015718,2]
[398566261,1765837839944,-612.27986795,0.00015718,2]
[398566262,1765837839954,-612.27986795,0.00015718,2]
[398566263,1765837839965,-612.27986795,0.00015718,2]
[398566264,1765837839974,-612.27986795,0.00015718,2]
[398566265,1765837839983,-612.27986795,0.00015718,2]
[398566266,1765837839992,-612.27986795,0.00015718,2]
[398566267,1765837840003,-612.27986795,0.00015718,2]
[398566268,1765837840012,-612.27986795,0.00015718,2]
[398566269,1765837840022,-612.27986795,0.00015718,2]
[398566270,1765837840031,-612.27986795,0.00015718,2]
[398566271,1765837840040,-612.27986795,0.00015718,2]
[398566272,1765837840050,-612.27986795,0.00015718,2]
[398566273,1765837840061,-612.27986795,0.00015718,2]
[398566274,1765837840070,-612.27986795,0.00015718,2]
[398566275,1765837840079,-520.59836011,0.00015718,2]
[398566276,1765837840595,-1.7e-07,0.00015718,2]
[398566277,1765837840606,-91.68150767,0.00015718,2]
[398566278,1765837840614,-598.04373604,0.00015718,2]
[398566279,1765837840625,-14.23613191,0.00015718,2]
[398566280,1765837840634,-612.27986795,0.00015718,2]
[398566281,1765837840642,-612.27986795,0.00015718,2]
[398566282,1765837840651,-608.45311878,0.00015718,2]
[398566283,1765837840660,-512.19235592,0.00015718,2]
[398566284,1765837840678,-96.26076286,0.00015718,2]
[398566285,1765837840687,-608.45311878,0.00015718,2]
[398566286,1765837840698,-608.45311878,0.00015718,2]
[398566287,1765837840707,-366.90424172,0.00015718,2]
[398566289,1765837842794,-241.54887706,0.00015718,2]
[398566290,1765837842805,-129.85532469,0.00015718,2]
[398566291,1765837842854,-474.37321396,0.00015718,2]
[398566300,1765837874884,1000.0,0.00015605,2]
[398566301,1765837887765,8525.90680023,0.00015619,2]
[398566302,1765837894782,1000.0,0.000157,2]
[398566303,1765837928318,-300.0,0.00015716,2]
[398566304,1765837928341,-51.82953741,0.00015717,2]
[398566305,1765837928385,200.0,0.0001571,2]
[398566306,1765837931579,156.64173634,0.0001571,2]
[398566307,1765837932105,150.0,0.00015697,2]
[398566308,1765837932959,150.0,0.00015697,2]
[398566309,1765837945218,300.00000001,0.0001571,2]
[398566310,1765837952859,2588.0,0.0001571,2]
[398566311,1765837957761,553.64373807,0.0001571,2]
[398566312,1765837962557,300.0,0.00015568,2]
[398566313,1765838013736,500.0,0.00015538,2]
[398566314,1765838013931,500.0,0.00015675,2]
[398566315,1765838014415,450.0,0.00015538,2]
[398566316,1765838014718,450.0,0.00015675,2]
[398566317,1765838015790,2290.0,0.00015538,2]
[398566318,1765838015958,2290.0,0.00015675,2]
[398566319,1765838019076,438.0,0.00015538,2]
[398566320,1765838019252,438.0,0.00015675,2]
[398566331,1765838037104,150.0,0.00015538,2]
[398566332,1765838037152,150.0,0.00015675,2]
[398566333,1765838037439,212.67396395,0.00015538,2]
[398566334,1765838037693,150.0,0.00015538,2]
[398566335,1765838039748,150.0,0.00015538,2]
[398566336,1765838039786,150.0,0.00015675,2]
[398566337,1765838043029,500.0,0.00015538,2]
[398566338,1765838043221,500.0,0.00015675,2]
[398566340,1765838079141,274.34744918,0.00015624,2]
[398566346,1765838124224,500.0,0.00015538,2]
[398566347,1765838124408,500.0,0.00015538,2]
[398566348,1765838124449,500.0,0.00015675,2]
[398566349,1765838127214,500.0,0.00015675,2]
[398566350,1765838127277,150.0,0.00015538,2]
[398566351,1765838127348,150.0,0.00015538,2]
[398566352,1765838127391,150.0,0.00015675,2]
[398566353,1765838127630,500.0,0.00015538,2]
[398566354,1765838127693,150.0,0.00015538,2]
[398566355,1765838127731,500.0,0.00015675,2]
[398566356,1765838127785,204.69767392,0.00015538,2]
[398566357,1765838127836,150.0,0.00015675,2]
[398566358,1765838128007,450.0,0.00015538,2]
[398566359,1765838128083,450.0,0.00015675,2]
[398566360,1765838128148,500.0,0.00015538,2]
[398566361,1765838128218,500.0,0.00015675,2]
[398566362,1765838128268,150.0,0.00015538,2]
[398566368,1765838196407,177.1811,0.00015619,2]
[398566369,1765838210737,150.0,0.00015538,2]
[398566386,1765838224982,300.0,0.0001571,2]
[398566387,1765838229871,553.64373807,0.0001571,2]
[398566390,1765838238870,999.0,0.0001514,3]
[398566391,1765838239277,150.0,0.00015444,2]
[398566399,1765838249612,2588.0,0.0001571,2]
[398566417,1765838286817,200.0,0.00015133,2]
[398566419,1765838317031,500.0,0.00015444,2]
[398566420,1765838317199,500.0,0.00015581,2]
[398566421,1765838317700,500.0,0.00015444,2]
[398566422,1765838317922,500.0,0.00015581,2]
[398566423,1765838319281,250.0,0.00015444,2]
[398566424,1765838319579,500.0,0.00015444,2]
[398566425,1765838319772,500.0,0.00015581,2]
[398566426,1765838320125,237.90738229,0.00015444,2]
[398566428,1765838321384,150.0,0.00015444,2]
[398566430,1765838321615,209.17196994,0.00015581,2]
[398566431,1765838321748,2099.0,0.00015444,2]
[398566432,1765838321931,2099.0,0.00015581,2]
[398566437,1765838327936,500.0,0.00015444,2]
[398566438,1765838328120,500.0,0.00015581,2]
[398566439,1765838328387,500.0,0.00015444,2]
[398566440,1765838328638,500.0,0.00015581,2]
[398566441,1765838331904,500.0,0.00015444,2]
[398566442,1765838333580,150.0,0.00015444,2]
[398566443,1765838333758,150.0,0.00015581,2]
[398566444,1765838345732,500.0,0.00015581,2]
[398566447,1765838365317,528976.3508,0.0001565,2]
[398566448,1765838391587,402.83850445,0.00015617,2]
[398566449,1765838395126,153.79106982,0.00015704,2]
[398566450,1765838396336,500.0,0.00015444,2]
[398566451,1765838396495,500.0,0.00015581,2]
[398566452,1765838396536,500.0,0.00015444,2]
[398566453,1765838396733,628.13853892,0.00015581,2]
[398566456,1765838397513,402.83850444,0.00015632,2]
[398566471,1765838403958,402.83850444,0.00015647,2]
[398566485,1765838486460,150.0,0.00015538,2]
[398566486,1765838486625,182.97899023,0.00015675,2]
[398566487,1765838495296,745.37,0.00013699,2]
[398566515,1765838534195,1000.0,0.00015543,2]
[398566521,1765838535340,150.0,0.00015538,2]
[398566522,1765838535399,500.0,0.00015538,2]
[398566523,1765838535552,200.0,0.00015675,2]
[398566524,1765838535598,500.0,0.00015675,2]
[398566525,1765838536049,150.0,0.00015538,2]
[398566526,1765838536108,500.0,0.00015538,2]
[398566527,1765838536298,500.0,0.00015675,2]
[398566528,1765838536538,500.0,0.00015538,2]
[398566529,1765838536714,500.0,0.00015675,2]
[398566570,1765838594951,2000.0,0.0001555,2]
[398566571,1765838599459,-300.0,0.00015716,2]
[398566572,1765838599480,-17.67192095,0.00015716,2]
[398566573,1765838601652,-200.0,0.00015716,2]
[398566574,1765838606073,-32.32807905,0.00015716,2]
[398566575,1765838606097,-167.67192095,0.00015716,2]
[398566576,1765838608598,-223.53363632,0.00015716,2]
[398566577,1765838608620,-11.73168495,0.00015716,2]
[398566578,1765838613224,-154.14062291,0.00015716,2]
[398566587,1765838640661,200.0,0.00015136,2]
[398566589,1765838642440,-181.16415193,0.00015716,2]
[398566590,1765838644414,-298.69218736,0.00015716,2]
[398566591,1765838647538,-392.95527222,0.00015716,2]
[398566592,1765838653117,-154.91520239,0.00015716,2]
[398566593,1765838655316,-302.50275351,0.00015716,2]
[398566594,1765838656822,-236.16323085,0.00015716,2]
[398566595,1765838659493,-310.12640303,0.00015716,2]
[398566596,1765838666091,-219.44061888,0.00015716,2]
[398566597,1765838668163,-221.0,0.00015716,2]
[398566599,1765838670820,-166.66,0.00015716,2]
[398566600,1765838673441,-194.31109753,0.00015716,2]
[398566604,1765838679279,500.0,0.00015538,2]
[398566605,1765838679344,500.0,0.00015538,2]
[398566606,1765838679386,500.0,0.00015675,2]
[398566608,1765838679449,500.0,0.00015675,2]
[398566609,1765838679644,-177.55040632,0.00015716,2]
[398566611,1765838680266,200.0,0.00015538,2]
[398566612,1765838680300,150.74499895,0.00015538,2]
[398566613,1765838681299,500.0,0.00015538,2]
[398566614,1765838681544,500.0,0.00015675,2]
[398566616,1765838681802,200.0,0.00015538,2]
[398566617,1765838681832,-166.68871506,0.00015716,2]
[398566619,1765838682604,3962.5449,0.00015646,2]
[398566620,1765838683720,500.0,0.00015538,2]
[398566621,1765838684441,500.0,0.00015675,2]
[398566622,1765838684504,-521.61843486,0.00015716,2]
[398566623,1765838687291,-195.0,0.00015716,2]
[398566624,1765838692426,-157.7742949,0.00015716,2]
[398566625,1765838694234,-317.29061087,0.00015716,2]
[398566626,1765838695689,-280.0,0.00015716,2]
[398566627,1765838699945,-244.31269064,0.00015716,2]
[398566629,1765838702192,-315.36467634,0.00015716,2]
[398566632,1765838706922,-215.58206913,0.00015716,2]
[398566633,1765838708553,-174.5426435,0.00015716,2]
[398566635,1765838710751,-194.16924576,0.00015716,2]
[398566636,1765838716097,-93.01248505,0.00015716,2]
[398566637,1765838716121,-181.00616902,0.00015716,2]
[398566638,1765838720026,-18.99383098,0.00015716,2]
[398566639,1765838720051,-29.12769214,0.00015716,2]
[398566641,1765838737681,-199.5952888,0.00015716,2]
[398566642,1765838740164,500.0,0.00015538,2]
[398566643,1765838740435,519.7053533,0.00015675,2]
[398566644,1765838740976,-364.51280722,0.00015716,2]
[398566645,1765838742417,-174.36309255,0.00015716,2]
[398566650,1765838745985,150.0,0.00015538,2]
[398566651,1765838746026,500.0,0.00015538,2]
[398566652,1765838746066,287.30937559,0.00015675,2]
[398566653,1765838746111,150.0,0.00015538,2]
[398566654,1765838746147,500.0,0.00015675,2]
[398566655,1765838746186,150.0,0.00015538,2]
[398566656,1765838746221,150.0,0.00015675,2]
[398566657,1765838746403,-281.0,0.00015716,2]
[398566660,1765838748480,-536.81979411,0.00015716,2]
[398566663,1765838751820,-298.65693306,0.00015716,2]
[398566666,1765838755601,-61.955995,0.00015716,2]
[398566671,1765838776371,156.17,0.00015106,2]
[398566673,1765838793293,1000.0,0.000157,2]
[398566674,1765838799555,300.0,0.00015556,2]
[398566675,1765838799594,336.65700239,0.00015656,2]
[398566680,1765838827694,-418.51155364,0.00015716,2]
[398566681,1765838829737,-548.02531198,0.00015716,2]
[398566682,1765838832160,150.0,0.00015472,2]
[398566683,1765838832646,150.08427247,0.00015609,2]
[398566700,1765838851813,5987.9244,0.00015646,2]
[398566703,1765838882213,1600.0,0.00015113,2]
[398566704,1765838961039,150.0,0.00015471,2]
[398566705,1765838961895,150.0,0.00015608,2]
[398566706,1765838961938,500.0,0.00015471,2]
[398566707,1765838962048,500.0,0.00015608,2]
[398566711,1765839009277,-300.0,0.00015716,2]
[398566712,1765839009300,-20.91701328,0.00015716,2]
[398566713,1765839011906,-222.80537899,0.00015716,2]
[398566714,1765839013981,-56.27760773,0.00015716,2]
[398566715,1765839014004,-232.44112487,0.00015716,2]
[398566716,1765839016502,-378.27900838,0.00015716,2]
[398566717,1765839021722,-212.99099162,0.00015716,2]
[398566719,1765839024367,-258.88652014,0.00015716,2]
[398566739,1765839034818,-117.40235499,0.00015716,2]
[398566740,1765839034828,-200.0,0.00015716,2]
[398566741,1765839034837,-195.0,0.00015716,2]
[398566742,1765839034846,-253.0,0.00015717,2]
[398566743,1765839034856,-955.75698528,0.00015717,2]
[398566744,1765839034865,-195.0,0.00015717,2]
[398566745,1765839034874,-500.0,0.00015718,2]
[398566746,1765839034883,-2021.8299848,0.00015718,2]
[398566747,1765839034892,-151.0,0.00015718,2]
[398566748,1765839034901,-245.4633403,0.00015718,2]
[398566749,1765839034910,-200.0,0.00015718,2]
[398566750,1765839034919,-200.0,0.00015718,2]
[398566751,1765839034928,-500.0,0.00015718,2]
[398566752,1765839034937,-152.0,0.00015718,2]
[398566753,1765839034946,-152.0,0.00015718,2]
[398566754,1765839034955,-152.0,0.00015718,2]
[398566755,1765839034964,-152.0,0.00015718,2]
[398566756,1765839034973,-152.0,0.00015718,2]
[398566757,1765839034982,-152.0,0.00015718,2]
[398566758,1765839034991,-152.0,0.00015718,2]
[398566759,1765839034999,-152.0,0.00015718,2]
[398566760,1765839035009,-287.47929294,0.00015718,2]
[398566761,1765839035018,-152.0,0.00015718,2]
[398566762,1765839035027,-300.0,0.00015734,2]
[398566763,1765839035037,-1000.0,0.00015735,2]
[398566764,1765839035046,-1000.0,0.00015735,2]
[398566765,1765839035055,-1000.0,0.00015735,2]
[398566766,1765839035064,-1000.0,0.00015735,2]
[398566767,1765839035074,-1000.0,0.00015735,2]
[398566768,1765839035083,-1000.0,0.00015735,2]
[398566769,1765839035093,-1000.0,0.00015735,2]
[398566770,1765839035102,-1000.0,0.00015735,2]
[398566771,1765839035111,-679.807,0.00015735,2]
[398566772,1765839035120,-1000.0,0.00015735,2]
[398566773,1765839035130,-1000.0,0.00015735,2]
[398566774,1765839035148,-1000.0,0.00015735,2]
[398566775,1765839035157,-1000.0,0.00015735,2]
[398566776,1765839035166,-1000.0,0.00015735,2]
[398566777,1765839035176,-701.225,0.00015735,2]
[398566778,1765839035186,-1207.12861925,0.00015737,2]
[398566779,1765839035203,-1380.87138075,0.00015737,2]
[398566780,1765839035213,-509.32423695,0.00015737,2]
[398566781,1765839035224,-44.31950112,0.00015737,2]
[398566782,1765839035233,-211.19054316,0.00015737,2]
[398566783,1765839035245,-88.80945684,0.00015737,2]
[398566784,1765839035254,-934.81,0.00015743,2]
[398566785,1765839035263,-326.85669953,0.00015743,2]
[398566786,1765839035274,-284.73892529,0.00015743,2]
[398566787,1765839035283,-611.59562482,0.00015743,2]
[398566788,1765839035292,-302.59564482,0.00015743,2]
[398566789,1765839035307,-308.99998,0.00015743,2]
[398566790,1765839035316,-611.59562482,0.00015743,2]
[398566791,1765839035324,-414.44482828,0.00015743,2]
[398566792,1765839035335,-197.15079654,0.00015743,2]
[398566793,1765839035344,-174.71447378,0.00015743,2]
[398566794,1765839035355,-436.88115104,0.00015743,2]
[398566795,1765839035364,-292.20788249,0.00015743,2]
[398566796,1765839035416,500.0,0.0001547,2]
[398566797,1765839035473,500.0,0.00015607,2]
[398566953,1765839039380,1925.0,0.0001547,2]
[398566998,1765839039781,1925.0,0.00015607,2]
[398567050,1765839040257,-1.7e-07,0.00015743,2]
[398567053,1765839040273,-150.99999983,0.00015743,2]
[398567055,1765839040283,-151.0,0.00015743,2]
[398567057,1765839040293,-128.91500017,0.00015743,2]
[398567311,1765839043044,-320.9670365,0.00015743,2]
[398567325,1765839043208,500.0,0.0001547,2]
[398567342,1765839043402,500.0,0.00015607,2]
[398567654,1765839048689,-316.20428702,0.00015743,2]
[398567655,1765839048699,-371.08499983,0.00015743,2]
[398567656,1765839048711,-500.0,0.00015744,2]
[398567657,1765839048720,-758.86159231,0.00015744,2]
[398567659,1765839055948,8499.04,0.00015106,2]
[398567660,1765839061833,166.66,0.00015627,2]
[398567676,1765839199045,200.0,0.00015618,2]
[398567677,1765839244725,1693.0,0.000157,2]
[398567772,1765839449455,150.06,7.587e-05,2]
[398567773,1765839449664,150.06,0.00011381,2]
[398567774,1765839449874,150.06,0.00015175,2]
[398567776,1765839480026,503.73,0.00015161,2]
[398567792,1765839533417,2651.86,0.00015161,2]
[398567793,1765839549857,166.66,0.00014416,2]
[398567794,1765839550060,166.66,0.0001472,2]
[398567795,1765839550286,166.66,0.00015023,2]
[398567796,1765839550525,166.66,0.00015327,2]
[398567797,1765839550740,166.66,0.0001563,2]
[398567808,1765839746759,7000.0,0.0001559,2]
[398567813,1765839753598,500.0,0.00015167,2]
[398567817,1765839792523,2000.0,0.00015618,2]
[398567818,1765839800112,200.0,0.00015618,2]
[398567824,1765839843253,16690.38589599,0.00015556,2]
[398567825,1765839867589,10990.03,0.00015167,2]
[398567826,1765839881674,-430.97892792,0.00015731,2]
[398567827,1765839882842,-210.0,0.00015731,2]
[398567828,1765839884949,-153.65563059,0.00015731,2]
[398567829,1765839888103,-152.69469716,0.00015731,2]
[398567830,1765839894408,-252.67074433,0.00015731,2]
[398567831,1765839894433,-47.32925567,0.00015731,2]
[398567832,1765839895935,-151.67773019,0.00015731,2]
[398567838,1765839913872,-81.99301414,0.00015731,2]
[398567839,1765839913895,-69.00698603,0.00015731,2]
[398567840,1765839920040,-180.99301397,0.00015731,2]
[398567841,1765839920061,-105.78295183,0.00015731,2]
[398567842,1765839922135,-89.21704817,0.00015731,2]
[398567843,1765839922156,-167.77655617,0.00015731,2]
[398567844,1765839965565,-195.0,0.00015731,2]
[398567850,1765839989055,500.0,0.00015607,2]
[398567851,1765839990140,500.0,0.00015607,2]
[398567852,1765839990793,-151.05,0.00015731,2]
[398567853,1765839990815,-150.93,0.00015731,2]
[398567854,1765839990837,-50.29488775,0.00015731,2]
[398567857,1765840029565,-152.83,0.00015731,2]
[398567858,1765840029590,-94.82890391,0.00015731,2]
[398567859,1765840031880,-58.01109609,0.00015731,2]
[398567860,1765840031901,-126.54576937,0.00015731,2]
[398567861,1765840038619,500.0,0.00015472,2]
[398567862,1765840038690,500.0,0.00015609,2]
[398567863,1765840039702,150.0,0.00015472,2]
[398567864,1765840042421,1961.0,0.00015472,2]
[398567865,1765840042627,1961.0,0.00015609,2]
[398567866,1765840047806,500.0,0.00015472,2]
[398567867,1765840048027,500.0,0.00015609,2]
[398567868,1765840051670,101328.6458,0.00015646,2]
[398567879,1765840078713,160.9148,0.00015646,2]
[398567880,1765840095171,643.87406,0.0001559,2]
[398567886,1765840132544,6543.3753,0.00015646,2]
[398567887,1765840134728,-24.86423063,0.00015731,2]
[398567888,1765840134751,-150.18,0.00015731,2]
[398567889,1765840134775,-151.75,0.00015731,2]
[398567890,1765840134797,-150.73,0.00015731,2]
[398567891,1765840134820,-151.29,0.00015731,2]
[398567892,1765840134842,-150.95,0.00015731,2]
[398567893,1765840134869,-300.0,0.00015731,2]
[398567894,1765840134894,-343.01591977,0.00015731,2]
[398567895,1765840134917,-300.0,0.00015731,2]
[398567896,1765840134940,-250.0,0.00015731,2]
[398567897,1765840134965,-300.0,0.00015733,2]
[398567898,1765840134988,-1200.0,0.00015733,2]
[398567899,1765840135012,-2000.0,0.00015733,2]
[398567900,1765840135036,-1000.0,0.00015733,2]
[398567901,1765840135059,-151.0,0.00015735,2]
[398567902,1765840135082,-1200.0,0.00015736,2]
[398567903,1765840135105,-387.69864719,0.00015736,2]
[398567904,1765840135131,-500.0,0.00015736,2]
[398567905,1765840135161,-500.0,0.00015736,2]
[398567906,1765840135187,-500.0,0.00015736,2]
[398567907,1765840135212,-500.0,0.00015736,2]
[398567908,1765840135240,-500.0,0.00015736,2]
[398567909,1765840135267,-500.0,0.00015736,2]
[398567910,1765840135293,-500.0,0.00015736,2]